fUSD/lending_fUSD_20250904
["ID","MTS","AMOUNT","RATE_DAILY","PERIOD"]
[383579381,1757004637493,-726.5,0.000221,2]
[383579382,1757004637503,-203.0,0.0002219,2]
[383579384,1757004637512,-345.7,0.00022457,2]
[383579385,1757004637522,-3010.21128815,0.00022495,2]
[383579386,1757004637532,-235.19,0.00022581,3]
[383579387,1757004637541,-160.0,0.00022651,7]
[383579388,1757004637550,-203.0,0.0002287,2]
[383579389,1757004637560,-5449.36166506,0.000229,5]
[383579390,1757004637643,-342.07584942,0.000229,5]
[383579391,1757004637695,-883.89939497,0.000229,5]
[383579452,1757004642754,-272.079216,0.000221,2]
[383579461,1757004645686,-12.690784,0.000221,2]
[383579462,1757004645696,-728.79795238,0.000229,5]
[383579463,1757004645706,-166.45,0.00023177,2]
[383579464,1757004645715,-825.09,0.00023361,2]
[383579465,1757004645724,-239.84119403,0.0002339,2]
[383579466,1757004645733,-5000.0,0.00023417,2]
[383579467,1757004645743,-171.35,0.00023457,2]
[383579468,1757004645755,-212.59699798,0.00023493,2]
[383579469,1757004645765,-52.58031814,0.00023493,2]
[383579470,1757004645844,-462.06447172,0.00023493,2]
[383579471,1757004645854,-160.0,0.00023493,2]
[383579472,1757004645863,-160.0,0.00023493,2]
[383579473,1757004645874,-423.0,0.00023499,2]
[383579474,1757004645884,-151.0,0.000235,2]
[383579475,1757004645895,-151.0,0.000235,2]
[383579476,1757004645905,-151.0,0.000235,2]
[383579477,1757004645916,-322.6107,0.000235,2]
[383579478,1757004645926,-151.0,0.000235,2]
[383579479,1757004645935,-151.0,0.000235,2]
[383579480,1757004645944,-151.0,0.000235,2]
[383579481,1757004645955,-151.0,0.000235,2]
[383579482,1757004645965,-151.0,0.000235,2]
[383579483,1757004645974,-151.0,0.000235,2]
[383579484,1757004645984,-151.0,0.000235,2]
[383579485,1757004645994,-151.0,0.000235,2]
[383579486,1757004646005,-151.0,0.000235,2]
[383579487,1757004646016,-151.0,0.000235,2]
[383579488,1757004646026,-151.0,0.000235,2]
[383579489,1757004646035,-151.0,0.000235,2]
[383579490,1757004646045,-151.0,0.000235,2]
[383579491,1757004646056,-500.0,0.000235,2]
[383579492,1757004646065,-1258.0,0.00023514,2]
[383579493,1757004646076,-924.0,0.00023514,2]
[383579494,1757004646088,-2035.0,0.00023514,2]
[383579495,1757004646097,-3382.0,0.00023514,2]
[383579496,1757004646107,-1577.0,0.00023514,2]
[383579497,1757004646117,-1300.0,0.00023514,2]
[383579498,1757004646128,-567.0,0.00023514,2]
[383579499,1757004646137,-600.0,0.00023514,2]
[383579500,1757004646147,-811.0,0.00023514,2]
[383579501,1757004646156,-6163.0,0.00023514,2]
[383579502,1757004646166,-4163.0,0.00023514,2]
[383579503,1757004646175,-21149.0,0.00023514,2]
[383579504,1757004646186,-724.0,0.00023514,2]
[383579505,1757004646196,-203.0,0.0002356,2]
[383579506,1757004646206,-1000.0,0.00023726,2]
[383579507,1757004646216,-2162.51605516,0.000238,2]
[383579508,1757004646225,-500.0,0.00023873,2]
[383579509,1757004646235,-504.24921148,0.00023873,2]
[383579510,1757004646245,-500.0,0.00023873,2]
[383579511,1757004646255,-500.0,0.00023873,2]
[383579512,1757004646265,-500.0,0.00023873,2]
[383579513,1757004646275,-500.0,0.00023873,2]
[383579514,1757004646286,-56848.21661164,0.000239,7]
[383579515,1757004790515,175.17,0.00013699,2]
[383579517,1757004967535,267.49930023,0.0003,120]
[383579518,1757004981773,167.9,0.00018342,2]
[383579519,1757005434700,169.28,0.00011321,2]
[383579520,1757005434912,169.28,0.00016982,2]
[383579521,1757005507518,250.0,0.00015,2]
[383579522,1757005508641,300.0,0.00017,2]
[383579523,1757005509724,350.0,0.00019,2]
[383579598,1757005705787,173.95,0.00013699,2]
[383579599,1757005745181,847.94384069,0.00030137,120]
[383579601,1757005831864,-209.72465213,0.00020087,2]
[383579602,1757005831877,-250.0,0.00020135,2]
[383579603,1757005831887,-888.42141436,0.00020187,5]
[383579604,1757005831915,-1161.34858564,0.00020187,5]
[383579605,1757005831925,-173.95,0.00020187,2]
[383579606,1757005831937,-400.0,0.00021,2]
[383579607,1757005831949,-295.0,0.000212,2]
[383579608,1757005831958,-151.0,0.00021735,2]
[383579609,1757005831967,-151.0,0.00021763,2]
[383579610,1757005831976,-151.0,0.00021792,2]
[383579611,1757005831986,-151.0,0.00021833,2]
[383579612,1757005831995,-199.18,0.00022,2]
[383579613,1757005832006,-289.13,0.00022,2]
[383579614,1757005832017,-162.0,0.00022,2]
[383579615,1757005832027,-1200.0,0.00022095,2]
[383579616,1757005832037,-300.0,0.00022096,2]
[383579617,1757005832046,-250.0,0.00022096,2]
[383579618,1757005832056,-300.0,0.00022098,2]
[383579619,1757005832065,-645.77,0.000221,2]
[383579620,1757005832075,-153.5,0.00022368,2]
[383579621,1757005832084,-578.0,0.0002238,2]
[383579622,1757005832093,-503.07,0.00022387,2]
[383579623,1757005832102,-169.28,0.00022643,2]
[383579624,1757005832111,-250.0,0.00022643,2]
[383579625,1757005832123,-160.0,0.00022776,7]
[383579626,1757005832134,-3010.21128815,0.000228,2]
[383579627,1757005832145,-2551.62,0.00022896,2]
[383579628,1757005832155,-500.0,0.00022975,2]
[383579629,1757005832166,-500.0,0.00022975,2]
[383579630,1757005832176,-447.37664427,0.00022975,2]
[383579632,1757005832186,-623.29358957,0.00022975,2]
[383579633,1757005832196,-200.0,0.00022975,2]
[383579634,1757005832206,-1175.0,0.00023302,2]
[383579635,1757005832215,-896.0,0.00023302,2]
[383579636,1757005832225,-6163.0,0.00023302,2]
[383579637,1757005832235,-4163.0,0.00023302,2]
[383579639,1757005832245,-21149.0,0.00023302,2]
[383579641,1757005832254,-164.65,0.00023322,2]
[383579642,1757005832264,-714.5618696,0.00023379,2]
[383579643,1757005832274,-514.64478986,0.00023442,2]
[383579644,1757005832284,-160.0,0.00023442,2]
[383579645,1757005832294,-160.0,0.00023442,2]
[383579646,1757005832304,-212.59699798,0.00023442,2]
[383579647,1757005832313,-322.6107,0.00023498,2]
[383579648,1757005832323,-2498.64000003,0.00023498,2]
[383579649,1757005832332,-160.0,0.00023498,2]
[383579650,1757005832342,-239.84119403,0.00023498,2]
[383579651,1757005832352,-151.0,0.00023498,2]
[383579652,1757005832362,-1258.0,0.00023514,2]
[383579653,1757005832371,-2035.0,0.00023514,2]
[383579654,1757005832381,-924.0,0.00023514,2]
[383579655,1757005832391,-3382.0,0.00023514,2]
[383579656,1757005832400,-1577.0,0.00023514,2]
[383579657,1757005832410,-567.0,0.00023514,2]
[383579658,1757005832419,-600.0,0.00023514,2]
[383579659,1757005832428,-1300.0,0.00023514,2]
[383579660,1757005832438,-811.0,0.00023514,2]
[383579661,1757005832447,-566.0,0.0002357,2]
[383579662,1757005832458,-790.65295,0.0002363,2]
[383579663,1757005832467,-514.64478986,0.00023658,7]
[383579664,1757005832476,-1000.0,0.00023726,2]
[383579665,1757005832486,-2867.99960752,0.000238,2]
[383579666,1757005832496,-3010.21128815,0.000239,3]
[383579667,1757005832506,-160.0,0.000239,3]
[383579668,1757005832515,-212.59699798,0.000239,3]
[383579669,1757005832525,-45363.97116112,0.000239,3]
[383579670,1757005832534,-81867.97584278,0.000239,7]
[383579671,1757005832544,-514.64478986,0.000239,7]
[383579672,1757005832553,-160.0,0.000239,7]
[383579673,1757005832563,-212.59699798,0.000239,7]
[383579674,1757005832572,-214.01388733,0.00023983,2]
[383579675,1757005832581,-3010.21128815,0.00024,7]
[383579676,1757005832594,-160.0,0.00024,7]
[383579677,1757005832606,-645.77,0.00024,2]
[383579678,1757005832615,-420.0,0.00024011,2]
[383579679,1757005832624,-1680.0,0.0002412,2]
[383579680,1757005832634,-199.18,0.000242,2]
[383579681,1757005832643,-203.0,0.0002425,2]
[383579682,1757005832652,-400.0,0.00024353,2]
[383579683,1757005832662,-400.0,0.00024353,2]
[383579684,1757005832671,-400.0,0.00024353,2]
[383579685,1757005832681,-574.47,0.00024353,2]
[383579686,1757005832690,-400.0,0.00024353,2]
[383579687,1757005832699,-466.56,0.00024353,2]
[383579688,1757005832710,-400.0,0.00024353,2]
[383579689,1757005832719,-400.0,0.00024353,2]
[383579690,1757005832728,-400.0,0.00024353,2]
[383579691,1757005832737,-417.82,0.00024353,2]
[383579692,1757005832747,-423.05,0.00024353,2]
[383579693,1757005832756,-474.26,0.00024353,2]
[383579694,1757005832766,-400.0,0.00024353,2]
[383579695,1757005832775,-400.0,0.00024353,2]
[383579696,1757005832786,-400.25,0.00024353,2]
[383579697,1757005832796,-400.0,0.00024353,2]
[383579698,1757005832806,-400.0,0.00024353,2]
[383579699,1757005832815,-400.0,0.00024353,2]
[383579700,1757005832824,-400.0,0.00024353,2]
[383579701,1757005832834,-400.0,0.00024353,2]
[383579702,1757005832843,-500.0,0.00024353,2]
[383579703,1757005832852,-400.0,0.00024353,2]
[383579704,1757005832861,-400.0,0.00024353,2]
[383579705,1757005832870,-400.0,0.00024353,2]
[383579706,1757005832880,-400.0,0.00024353,2]
[383579707,1757005832889,-2867.99960746,0.00024353,2]
[383579708,1757005832899,-1000.0,0.00024397,2]
[383579709,1757005832908,-233.10708445,0.00024397,2]
[383579710,1757005832917,-10467.05497706,0.00024397,2]
[383579711,1757005832926,-467.51690998,0.00024398,2]
[383579712,1757005832936,-1000.0,0.000244,2]
[383579713,1757005832945,-168.43,0.00024487,2]
[383579714,1757005832954,-403.10189993,0.00024495,2]
[383579715,1757005832963,-400.0,0.00024495,2]
[383579716,1757005832973,-416.92,0.00024495,2]
[383579717,1757005832983,-400.0,0.00024495,2]
[383579718,1757005832992,-400.0,0.00024495,2]
[383579719,1757005833001,-540.84,0.00024495,2]
[383579720,1757005833010,-400.0,0.00024495,2]
[383579721,1757005833020,-400.0,0.00024495,2]
[383579722,1757005833029,-446.36,0.00024495,2]
[383579723,1757005833040,-400.0,0.00024495,2]
[383579724,1757005833050,-490.75,0.00024495,2]
[383579725,1757005833059,-400.0,0.00024495,2]
[383579726,1757005833069,-400.0,0.00024495,2]
[383579727,1757005833079,-400.0,0.00024495,2]
[383579728,1757005833089,-400.0,0.00024495,2]
[383579729,1757005833098,-413.13,0.00024495,2]
[383579730,1757005833108,-547.26,0.00024495,2]
[383579731,1757005833118,-400.0,0.00024495,2]
[383579732,1757005833128,-400.0,0.00024495,2]
[383579733,1757005833137,-400.0,0.00024495,2]
[383579734,1757005833146,-289.844458,0.00024495,2]
[383579735,1757005833156,-212.321057,0.00024495,2]
[383579736,1757005833166,-485.33,0.00024495,2]
[383579737,1757005833176,-400.0,0.00024495,2]
[383579738,1757005833186,-415.19,0.00024495,2]
[383579739,1757005833197,-434.53,0.00024495,2]
[383579740,1757005833207,-400.0,0.00024495,2]
[383579741,1757005833216,-275.356416,0.00024495,2]
[383579742,1757005833227,-400.0,0.00024495,2]
[383579743,1757005833236,-400.0,0.00024495,2]
[383579744,1757005833246,-159.226295,0.00024495,2]
[383579745,1757005833255,-300.0,0.00024496,2]
[383579746,1757005833265,-400.0,0.00024496,2]
[383579747,1757005833275,-400.0,0.00024496,2]
[383579748,1757005833285,-400.0,0.00024496,2]
[383579749,1757005833295,-400.0,0.00024496,2]
[383579750,1757005833306,-400.0,0.00024496,2]
[383579751,1757005833316,-400.0,0.00024496,2]
[383579752,1757005833326,-400.0,0.00024496,2]
[383579753,1757005833336,-415.44459749,0.00024496,2]
[383579754,1757005833346,-400.0,0.00024496,2]
[383579755,1757005833356,-400.0,0.00024496,2]
[383579756,1757005833365,-400.0,0.00024496,2]
[383579757,1757005833375,-413.99705456,0.00024496,2]
[383579758,1757005833384,-400.0,0.00024496,2]
[383579759,1757005833394,-400.0,0.00024496,2]
[383579760,1757005833404,-400.0,0.00024496,2]
[383579761,1757005833413,-400.0,0.00024496,2]
[383579762,1757005833423,-400.0,0.00024496,2]
[383579763,1757005833433,-400.0,0.00024496,2]
[383579764,1757005833442,-400.0,0.00024496,2]
[383579765,1757005833453,-400.0,0.00024496,2]
[383579766,1757005833463,-931.59,0.00024496,2]
[383579767,1757005833472,-400.0,0.00024496,2]
[383579768,1757005833483,-400.0,0.00024496,2]
[383579769,1757005833493,-400.0,0.00024496,2]
[383579770,1757005833502,-400.0,0.00024496,2]
[383579771,1757005833511,-400.0,0.00024496,2]
[383579772,1757005833521,-400.0,0.00024496,2]
[383579773,1757005833531,-400.0,0.00024496,2]
[383579774,1757005833541,-400.0,0.00024496,2]
[383579775,1757005833550,-400.0,0.00024496,2]
[383579776,1757005833560,-513.3,0.00024496,2]
[383579777,1757005833570,-500.0,0.00024496,2]
[383579778,1757005833580,-400.0,0.00024496,2]
[383579779,1757005833592,-662.13,0.00024496,2]
[383579780,1757005833603,-400.0,0.00024496,2]
[383579781,1757005833613,-400.0,0.00024496,2]
[383579782,1757005833622,-400.0,0.00024496,2]
[383579783,1757005833633,-532.38,0.00024496,2]
[383579784,1757005833643,-416.63,0.00024496,2]
[383579785,1757005833653,-400.0,0.00024496,2]
[383579786,1757005833663,-400.0,0.00024496,2]
[383579787,1757005833674,-685.29,0.00024496,2]
[383579788,1757005833683,-400.0,0.00024496,2]
[383579789,1757005833693,-400.0,0.00024496,2]
[383579790,1757005833703,-400.0,0.00024496,2]
[383579791,1757005833713,-400.0,0.00024496,2]
[383579792,1757005833722,-400.0,0.00024496,2]
[383579793,1757005833732,-400.0,0.00024496,2]
[383579794,1757005833743,-400.0,0.00024496,2]
[383579795,1757005833752,-400.0,0.00024496,2]
[383579796,1757005833763,-400.0,0.00024497,2]
[383579797,1757005833773,-400.0,0.00024497,2]
[383579798,1757005833783,-400.0,0.00024497,2]
[383579799,1757005833793,-400.0,0.00024497,2]
[383579800,1757005833803,-433.27,0.00024497,2]
[383579801,1757005833813,-400.0,0.00024497,2]
[383579802,1757005833822,-400.0,0.00024497,2]
[383579803,1757005833832,-313.78,0.00024497,2]
[383579804,1757005833842,-400.0,0.00024497,2]
[383579805,1757005833852,-326.7425599,0.00024497,2]
[383579806,1757005833862,-400.0,0.00024497,2]
[383579807,1757005833871,-400.0,0.00024497,2]
[383579808,1757005833881,-400.0,0.00024497,2]
[383579809,1757005833891,-445.3,0.00024497,2]
[383579810,1757005833900,-456.03,0.00024497,2]
[383579811,1757005833910,-400.0,0.00024497,2]
[383579812,1757005833920,-400.0,0.00024497,2]
[383579813,1757005833930,-400.0,0.00024497,2]
[383579814,1757005833939,-470.45,0.00024497,2]
[383579815,1757005833949,-400.0,0.00024497,2]
[383579816,1757005833959,-400.0,0.00024497,2]
[383579817,1757005833969,-400.0,0.00024497,2]
[383579818,1757005833979,-400.0,0.00024497,2]
[383579819,1757005833989,-400.0,0.00024497,2]
[383579820,1757005833999,-400.0,0.00024497,2]
[383579821,1757005834009,-401.09226271,0.00024497,2]
[383579822,1757005834019,-534.26,0.00024497,2]
[383579823,1757005834029,-400.0,0.00024497,2]
[383579824,1757005834039,-400.0,0.00024497,2]
[383579825,1757005834050,-400.0,0.00024497,2]
[383579826,1757005834059,-400.0,0.00024497,2]
[383579827,1757005834069,-400.0,0.00024497,2]
[383579828,1757005834079,-400.0,0.00024497,2]
[383579829,1757005834090,-400.0,0.00024497,2]
[383579830,1757005834099,-400.0,0.00024497,2]
[383579831,1757005834108,-400.0,0.00024497,2]
[383579832,1757005834118,-400.0,0.00024497,2]
[383579833,1757005834128,-400.0,0.00024497,2]
[383579834,1757005834138,-400.0,0.00024497,2]
[383579835,1757005834147,-400.0,0.00024497,2]
[383579836,1757005834157,-400.0,0.00024497,2]
[383579837,1757005834167,-424.08,0.00024497,2]
[383579838,1757005834176,-400.0,0.00024497,2]
[383579839,1757005834186,-400.0,0.00024497,2]
[383579840,1757005834196,-400.0,0.00024497,2]
[383579841,1757005834205,-400.0,0.00024497,2]
[383579842,1757005834215,-400.0,0.00024497,2]
[383579843,1757005834225,-494.98772671,0.00024497,2]
[383579844,1757005834235,-400.0,0.00024497,2]
[383579845,1757005834245,-400.0,0.00024497,2]
[383579846,1757005834255,-400.0,0.00024497,2]
[383579847,1757005834265,-400.0,0.00024497,2]
[383579848,1757005834274,-400.0,0.00024497,2]
[383579849,1757005834283,-400.0,0.00024497,2]
[383579850,1757005834293,-400.0,0.00024497,2]
[383579851,1757005834303,-400.0,0.00024497,2]
[383579852,1757005834312,-400.0,0.00024497,2]
[383579853,1757005834322,-402.83710471,0.00024497,2]
[383579854,1757005834331,-400.0,0.00024497,2]
[383579855,1757005834341,-400.0,0.00024497,2]
[383579856,1757005834351,-400.0,0.00024497,2]
[383579857,1757005834360,-400.0,0.00024497,2]
[383579858,1757005834370,-400.0,0.00024497,2]
[383579859,1757005834379,-500.0,0.00024497,2]
[383579860,1757005834389,-400.0,0.00024497,2]
[383579861,1757005834398,-400.0,0.00024497,2]
[383579862,1757005834408,-400.0,0.00024497,2]
[383579863,1757005834417,-400.0,0.00024497,2]
[383579864,1757005834427,-400.0,0.00024497,2]
[383579865,1757005834437,-400.0,0.00024497,2]
[383579866,1757005834446,-400.0,0.00024497,2]
[383579867,1757005834456,-529.24,0.00024497,2]
[383579868,1757005834465,-400.0,0.00024497,2]
[383579869,1757005834475,-400.0,0.00024497,2]
[383579870,1757005834484,-400.0,0.00024497,2]
[383579871,1757005834494,-549.26,0.00024497,2]
[383579872,1757005834503,-500.0,0.00024497,2]
[383579873,1757005834512,-400.0,0.00024497,2]
[383579874,1757005834522,-400.0,0.00024497,2]
[383579875,1757005834532,-400.0,0.00024497,2]
[383579876,1757005834541,-400.0,0.00024497,2]
[383579877,1757005834551,-400.0,0.00024497,2]
[383579878,1757005834560,-400.0,0.00024497,2]
[383579879,1757005834570,-400.0,0.00024497,2]
[383579880,1757005834579,-401.36841579,0.00024497,2]
[383579881,1757005834589,-400.0,0.00024497,2]
[383579882,1757005834602,-402.48789976,0.00024497,2]
[383579883,1757005834612,-400.0,0.00024497,2]
[383579884,1757005834621,-400.0,0.00024497,2]
[383579885,1757005834631,-401.88641679,0.00024497,2]
[383579886,1757005834642,-400.0,0.00024497,2]
[383579887,1757005834656,-400.0,0.00024497,2]
[383579888,1757005834666,-400.0,0.00024497,2]
[383579889,1757005834676,-400.0,0.00024497,2]
[383579890,1757005834686,-400.0,0.00024497,2]
[383579891,1757005834695,-422.05,0.00024497,2]
[383579892,1757005834704,-400.0,0.00024497,2]
[383579893,1757005834713,-400.0,0.00024497,2]
[383579894,1757005834723,-400.0,0.00024497,2]
[383579895,1757005834732,-402.12625855,0.00024497,2]
[383579896,1757005834742,-400.0,0.00024497,2]
[383579897,1757005834753,-400.0,0.00024497,2]
[383579898,1757005834764,-400.0,0.00024497,2]
[383579899,1757005834775,-400.0,0.00024497,2]
[383579900,1757005834785,-444.41,0.00024497,2]
[383579901,1757005834795,-400.0,0.00024497,2]
[383579902,1757005834805,-402.5992804,0.00024497,2]
[383579903,1757005834817,-400.0,0.00024497,2]
[383579904,1757005834828,-400.0,0.00024497,2]
[383579905,1757005834838,-420.19,0.00024497,2]
[383579906,1757005834848,-400.0,0.00024497,2]
[383579907,1757005834857,-400.0,0.00024497,2]
[383579908,1757005834868,-400.0,0.00024497,2]
[383579909,1757005834878,-400.0,0.00024497,2]
[383579910,1757005834888,-400.0,0.00024497,2]
[383579911,1757005834898,-400.0,0.00024497,2]
[383579912,1757005834910,-400.0,0.00024497,2]
[383579913,1757005834919,-400.0,0.00024497,2]
[383579914,1757005834929,-400.0,0.00024497,2]
[383579915,1757005834939,-400.0,0.00024497,2]
[383579916,1757005834949,-400.0,0.00024497,2]
[383579917,1757005834958,-400.0,0.00024497,2]
[383579918,1757005834967,-400.0,0.00024497,2]
[383579919,1757005834976,-400.0,0.00024497,2]
[383579920,1757005834985,-263.13391673,0.00024497,2]
[383579921,1757005834995,-400.0,0.00024497,2]
[383579922,1757005835006,-400.0,0.00024497,2]
[383579923,1757005835016,-400.0,0.00024497,2]
[383579924,1757005835026,-442.99,0.00024497,2]
[383579925,1757005835036,-402.66583555,0.00024497,2]
[383579926,1757005835045,-447.56,0.00024497,2]
[383579927,1757005835056,-400.0,0.00024497,2]
[383579928,1757005835066,-400.0,0.00024497,2]
[383579929,1757005835076,-400.0,0.00024497,2]
[383579930,1757005835086,-402.57107109,0.00024497,2]
[383579931,1757005835096,-400.0,0.00024497,2]
[383579932,1757005835106,-400.0,0.00024497,2]
[383579933,1757005835116,-400.0,0.00024497,2]
[383579934,1757005835126,-533.35,0.00024497,2]
[383579935,1757005835135,-400.0,0.00024497,2]
[383579936,1757005835144,-400.0,0.00024497,2]
[383579937,1757005835154,-400.0,0.00024497,2]
[383579938,1757005835163,-400.0,0.00024497,2]
[383579939,1757005835172,-400.0,0.00024497,2]
[383579940,1757005835182,-400.0,0.00024497,2]
[383579941,1757005835191,-400.0,0.00024497,2]
[383579942,1757005835201,-402.55064201,0.00024497,2]
[383579943,1757005835211,-400.0,0.00024497,2]
[383579944,1757005835220,-400.0,0.00024497,2]
[383579945,1757005835230,-400.0,0.00024497,2]
[383579946,1757005835239,-400.0,0.00024497,2]
[383579947,1757005835249,-400.0,0.00024497,2]
[383579948,1757005835258,-406.28,0.00024497,2]
[383579949,1757005835268,-403.24853768,0.00024497,2]
[383579950,1757005835277,-400.0,0.00024497,2]
[383579951,1757005835287,-400.0,0.00024497,2]
[383579952,1757005835296,-400.0,0.00024497,2]
[383579953,1757005835306,-400.0,0.00024497,2]
[383579954,1757005835315,-400.0,0.00024497,2]
[383579955,1757005835325,-400.0,0.00024497,2]
[383579956,1757005835334,-151.0,0.00024497,7]
[383579957,1757005835344,-400.0,0.00024497,2]
[383579958,1757005835353,-400.0,0.00024497,2]
[383579959,1757005835362,-400.0,0.00024497,2]
[383579960,1757005835372,-166.624136,0.00024497,7]
[383579961,1757005835381,-400.0,0.00024497,2]
[383579962,1757005835391,-400.0,0.00024497,2]
[383579963,1757005835400,-400.0,0.00024497,2]
[383579964,1757005835410,-400.0,0.00024497,2]
[383579965,1757005835419,-400.0,0.00024497,2]
[383579966,1757005835428,-400.0,0.00024497,2]
[383579967,1757005835438,-400.0,0.00024497,2]
[383579968,1757005835448,-400.0,0.00024497,2]
[383579969,1757005835458,-400.0,0.00024497,2]
[383579970,1757005835467,-400.0,0.00024497,2]
[383579971,1757005835477,-400.0,0.00024497,2]
[383579972,1757005835487,-400.0,0.00024497,2]
[383579973,1757005835496,-400.0,0.00024497,2]
[383579974,1757005835506,-400.0,0.00024497,2]
[383579975,1757005835516,-533.13,0.00024497,2]
[383579976,1757005835526,-537.94,0.00024497,2]
[383579977,1757005835535,-400.0,0.00024497,2]
[383579978,1757005835545,-400.0,0.00024497,2]
[383579979,1757005835554,-400.0,0.00024497,2]
[383579980,1757005835564,-400.0,0.00024497,2]
[383579981,1757005835573,-400.0,0.00024497,2]
[383579982,1757005835583,-400.0,0.00024497,2]
[383579983,1757005835595,-400.0,0.00024497,2]
[383579984,1757005835604,-400.0,0.00024497,2]
[383579985,1757005835614,-400.0,0.00024497,2]
[383579986,1757005835623,-400.0,0.00024497,2]
[383579987,1757005835632,-400.0,0.00024497,2]
[383579988,1757005835642,-400.0,0.00024497,2]
[383579989,1757005835652,-400.0,0.00024497,2]
[383579990,1757005835662,-400.0,0.00024497,2]
[383579991,1757005835673,-400.0,0.00024497,2]
[383579992,1757005835682,-400.0,0.00024497,2]
[383579993,1757005835692,-400.0,0.00024497,2]
[383579994,1757005835877,-400.0,0.00024497,2]
[383579995,1757005835888,-534.22,0.00024497,2]
[383579996,1757005835898,-400.0,0.00024497,2]
[383579997,1757005835907,-400.0,0.00024497,2]
[383579998,1757005835917,-400.0,0.00024497,2]
[383579999,1757005835927,-400.0,0.00024497,2]
[383580000,1757005835936,-400.0,0.00024497,2]
[383580001,1757005835946,-400.0,0.00024497,2]
[383580002,1757005835956,-401.27593876,0.00024497,2]
[383580003,1757005835966,-400.0,0.00024497,2]
[383580004,1757005835976,-400.0,0.00024497,2]
[383580005,1757005835986,-400.0,0.00024497,2]
[383580006,1757005835995,-400.0,0.00024497,2]
[383580007,1757005836006,-515.88,0.00024497,2]
[383580008,1757005836015,-400.0,0.00024497,2]
[383580009,1757005836025,-400.0,0.00024497,2]
[383580010,1757005836035,-400.0,0.00024497,2]
[383580011,1757005836044,-400.0,0.00024497,2]
[383580012,1757005836054,-400.0,0.00024497,2]
[383580013,1757005836064,-400.0,0.00024497,2]
[383580014,1757005836074,-400.0,0.00024497,2]
[383580015,1757005836083,-400.0,0.00024497,2]
[383580016,1757005836093,-400.0,0.00024497,2]
[383580017,1757005836102,-401.98,0.00024497,2]
[383580018,1757005836111,-400.0,0.00024497,2]
[383580019,1757005836123,-400.0,0.00024497,2]
[383580020,1757005836132,-400.0,0.00024497,2]
[383580021,1757005836141,-400.0,0.00024497,2]
[383580022,1757005836151,-400.0,0.00024497,2]
[383580023,1757005836161,-400.0,0.00024497,2]
[383580024,1757005836171,-400.0,0.00024497,2]
[383580025,1757005836181,-400.0,0.00024497,2]
[383580026,1757005836191,-400.0,0.00024497,2]
[383580027,1757005836201,-400.0,0.00024497,2]
[383580028,1757005836211,-400.0,0.00024497,2]